Cogmind - Beta 13 @@@ ROGUE MODE // 2024.05.04 @ 16:43:59 Player: Bace Troncons Result: Destroyed self with Grenade Launcher Performance ------------- Evolutions (0) 0 Regions Visited (2) 400 Robots Destroyed (31) 155 Value Destroyed (640) 640 Prototype IDs (4) 80 Alien Tech Used (0) 0 Bonus (0) 0 TOTAL SCORE: 1275 Bonus ------- None Cogmind --------- Core Integrity 0/250 Matter 279/300 Energy 155/160 System Corruption 0% Temperature Cool (0) Movement Walking (190) Ox1 Location -10/Mines Parts ------- > --- POWER (1) -------- Light Nuclear Core > --- PROPULSION (2) --- Aluminum Leg Aluminum Leg > --- UTILITY (2) ------ Large Storage Unit Sensor Array > --- WEAPON (2) ------- Light Assault Rifle Grenade Launcher > --- INVENTORY (15) --- Light Ion Engine Light Ion Engine Weight Redist. System Structural Scanner Signal Interpreter Seismic Detector ECM Suite Light Armor Plating Light Armor Plating Light Assault Rifle Light Assault Rifle Light Cannon Peak State ------------ > --- POWER ------------ Light Nuclear Core > --- PROPULSION ------- Light Treads Light Treads > --- UTILITY ---------- Medium Storage Unit Visual Processing Unit > --- WEAPON ----------- Light Assault Rifle Light Assault Rifle > --- INVENTORY -------- Light Ion Engine Light Ion Engine Aluminum Leg Aluminum Leg Weight Redist. System Seismic Detector ECM Suite Light Armor Plating Light Cannon Grenade Launcher [Rating: 11] Favorites ----------- Power Ion Engine Engine Ion Engine Power Core Light Nuclear Core Propulsion Light Treads Treads Light Treads Leg Aluminum Leg Utility Medium Storage Unit Device Sensor Array Storage Medium Storage Unit Processor Visual Processing Unit Weapon Light Assault Rifle Energy Gun Small Laser Energy Cannon Beam Cannon Ballistic Gun Light Assault Rifle Launcher Grenade Launcher Build | -11 -10 -10 ------- Run | Yrd Mat Min Slots Evolved . | . . . Power . | . . . Propulsion . | . . . Utility . | . . . Weapon . | . . . Parts Attached 25 | 6 13 6 Power 2 | 1 1 . Engine 1 | 1 . . Core 1 | . 1 . Reactor . | . . . Propulsion 5 | 2 1 2 Treads 3 | 2 1 . Leg 2 | . . 2 Wheel . | . . . Hover . | . . . Flight . | . . . Utility 6 | 1 5 . Device 1 | . 1 . Storage 4 | 1 3 . Processor 1 | . 1 . Hackware . | . . . Protection . | . . . Artifact . | . . . Weapon 12 | 2 6 4 Energy Gun 3 | 1 2 . Energy Cannon 1 | . 1 . Ballistic Gun 4 | 1 1 2 Ballistic Cannon . | . . . Launcher 4 | . 2 2 Special Weapon . | . . . Impact Weapon . | . . . Slashing Weapon . | . . . Piercing Weapon . | . . . Special Melee Weapon . | . . . Unidentified Prototypes . | . . . Parts Lost 2 | . . 2 Power . | . . . Propulsion 2 | . . 2 Utility . | . . . Weapon . | . . . Highest Loss Streak 2 | . . 2 To Critical Strikes . | . . . Average Slot Usage (%) 94 | . 94 95 Engine 8 | . 10 . Core 5 | . 3 14 Treads 25 | . 28 14 Leg 1 | . . 9 Device 5 | . 3 14 Storage 15 | . 15 14 Processor 2 | . 3 . Energy Gun 2 | . 3 . Ballistic Gun 23 | . 22 27 Launcher 1 | . 1 . Naked Turns . | . . . Heaviest Build 92 | 12 92 30 Greatest Support 40 | 40 40 40 Greatest Overweight (x) 9 | 2 2 9 Average Overweight (x) . | . . . Largest Inventory Capacity 25 | 8 25 15 Average Capacity 13 | 7 12 15 Most Carried 14 | 3 12 14 Average Carried 9 | 1 8 12 Final Capacity 15 | 8 15 15 Final Carried 12 | 3 12 12 Class Distribution -------------------- 91% | Mutant 8% | Scavenger-Mutant Dominant Class ---------------- Mutant | -10/Materials Mutant | -10/Mines Resources | -11 -10 -10 ----------- Run | Yrd Mat Min Matter Collected 633 | 223 335 75 Remotely . | . . . Salvage Created 755 | . 692 63 Parts 62 | . 52 10 Haulers Intercepted 2 | . 2 . Recyclers Shooed 1 | . . 1 Parts Field Recycled . | . . . Retrieved Matter . | . . . Parts Self-Destructed . | . . . Prevented . | . . . Kills | -11 -10 -10 ------- Run | Yrd Mat Min Combat Hostiles Destroyed 24 | . 18 6 Guns 16 | . 13 3 AOE 8 | . 5 3 Classes Destroyed 6 | . 6 . Worker 1 | . 1 . Hauler 2 | . 2 . Operator 1 | . 1 . Watcher 3 | . 3 . Swarmer 12 | . 6 6 Grunt 12 | . 12 . Best Kill Streak 4 | . 4 3 Combat Bots Only 4 | . 4 3 Max Kills in Single Turn 3 | . 3 3 Gunslinging . | . . . Exploded 3 | . 3 3 Melee . | . . . Uniques/NPCs Destroyed . | . . . Combat | -11 -10 -10 -------- Run | Yrd Mat Min Hostile Shots Fired 111 | . 78 33 Missed 27 | . 17 10 Damage Taken 951 | . 721 230 Core 284 | . 197 87 Absorbed by Shields . | . . . Core Remaining (%) 100 | 100 . . Volleys Fired 89 | . 75 14 Largest 2 | . 2 2 Hottest 80 | . 80 50 Shots Fired 175 | . 147 28 Gun 159 | . 133 26 Cannon 10 | . 10 . Launcher 6 | . 4 2 Special . | . . . Kinetic 154 | . 128 26 Thermal 15 | . 15 . Explosive 6 | . 4 2 Electromagnetic . | . . . Robot Hit Streak 14 | . 14 3 Robot Miss Streak 7 | . 4 7 Penetration Max . | . . . Secondary Targets 2 | . 2 . Max Gunslinging Chain 1 | . 1 . Shots Hit Robots 102 | . 94 8 Core Hits 53 | . 47 6 Critical Kills . | . . . Critical Parts Destroyed . | . . . Critical Strikes . | . . . Melee Attacks . | . . . Impact . | . . . Slashing . | . . . Piercing . | . . . Sneak Attacks . | . . . Combat Hostiles . | . . . Follow-up Attacks . | . . . Damage Inflicted 1431 | . 1218 213 Guns 862 | . 789 73 Cannons . | . . . Explosions 569 | . 429 140 Melee . | . . . Ramming . | . . . Kinetic 841 | . 768 73 Thermal 21 | . 21 . Explosive 569 | . 429 140 Electromagnetic . | . . . Impact . | . . . Slashing . | . . . Piercing . | . . . Highest Corruption . | . . . Average Corruption . | . . . Corruption Purged . | . . . Corruption Blocked . | . . . Overload Shots . | . . . Overflow Damage 56 | . 2 54 Projectiles . | . . . Explosions 56 | . 2 54 Melee . | . . . Knockbacks . | . . . Impact . | . . . Kinetic . | . . . Secondary . | . . . Self-Inflicted Damage 44 | . . 44 Shots 2 | . . 2 Rammed . | . . . Targets Rammed . | . . . Kicked . | . . . Crushed . | . . . Highest Temperature 262 | . 262 14 Average Temperature 33 | . 38 5 Received Heat Transfer 324 | . 324 . Siege Activations . | . . . Robots Corrupted . | . . . Combat Hostiles . | . . . Parts Fried . | . . . Impact Corruptions . | . . . Robots Melted . | . . . Combat Hostiles . | . . . Parts Melted . | . . . Heat Transferred 50 | . 50 . Parts Sabotaged . | . . . Parts Stolen . | . . . Parts Stripped . | . . . Power Chain Reactions . | . . . Alert | -11 -10 -10 ------- Run | Yrd Mat Min Peak Influence 174 | . 170 174 Initial 41 | . . 41 Average 70 | . 54 148 Maximum Alert Level . | . . . Low Security (%) 100 | 100 100 100 Level 1 . | . . . Level 2 . | . . . Level 3 . | . . . Level 4 . | . . . Level 5 . | . . . High Security . | . . . Max Security . | . . . Squads Dispatched 5 | . 5 . Investigation 4 | . 4 . Extermination . | . . . Reinforcement 1 | . 1 . Assault . | . . . Garrison . | . . . Intercept . | . . . Searches Triggered . | . . . Construction Impeded . | . . . Haulers Reinforced . | . . . Active Scanning Responses . | . . . Cargo Convoy Interrupts . | . . . Stealth | -11 -10 -10 --------- Run | Yrd Mat Min Distress Signals 3 | . 3 . Communications Jammed . | . . . Distress Signals . | . . . Times Spotted 35 | . 27 8 Peak Tracking Total 5 | . 5 3 Tactical Retreats . | . . . Traps | -11 -10 -10 ------- Run | Yrd Mat Min Traps Triggered 5 | . 5 . Indirectly . | . . . Trap Hack Attempts . | . . . Triggered . | . . . Disarmed . | . . . Reprogrammed . | . . . Reused . | . . . Traps Extracted . | . . . Installed . | . . . Triggered . | . . . Machines | -11 -10 -10 ---------- Run | Yrd Mat Min Machines Disabled 3 | . 3 . Max in Single Turn 1 | . 1 . Machines Repaired . | . . . Machines Dismantled . | . . . Machines Sabotaged . | . . . Overloaded Fab Kills . | . . . Hacking | -11 -10 -10 --------- Run | Yrd Mat Min Machines Accessed 8 | . 8 . Terminals 7 | . 7 . Fabricators . | . . . Repair Stations . | . . . Recycling Units 1 | . 1 . Scanalyzers . | . . . Garrison Access . | . . . Total Hacks 18 | . 18 . Successful 9 | . 9 . Failed 9 | . 9 . Catastrophic 1 | . 1 . Database Lockouts . | . . . Manual 5 | . 5 . Terminals 15 | . 15 . Fabricators . | . . . Repair Stations . | . . . Recycling Units 3 | . 3 . Scanalyzers . | . . . Garrison Access . | . . . Terminal Hacks 7 | . 7 . Prototype ID Bank 2 | . 2 . Unreport Threat 1 | . 1 . Maintenance Status 1 | . 1 . Reinforcement Status 1 | . 1 . Hauler Manifests 1 | . 1 . Zone Layout 1 | . 1 . Fabricator Hacks . | . . . Repair Station Hacks . | . . . Recycling Unit Hacks 2 | . 2 . Retrieve Components 2 | . 2 . Scanalyzer . | . . . Garrison Access Hacks . | . . . Unauthorized Hacks . | . . . Terminals . | . . . Fabricators . | . . . Repair Stations . | . . . Recycling Units . | . . . Scanalyzers . | . . . Garrison Access . | . . . Data Cores Recovered . | . . . Used . | . . . Hacking Detections 7 | . 7 . Full Trace Events . | . . . Feedback Events . | . . . Feedback Blocked . | . . . Robot Schematics Acquired . | . . . Robots Built . | . . . Authchips . | . . . Time . | . . . Total Robot Build Rating . | . . . Part Schematics Acquired . | . . . Parts Built . | . . . Authchips . | . . . Time . | . . . Total Part Build Rating . | . . . Parts Repaired . | . . . Time . | . . . Parts Recycled . | . . . Recycled Matter . | . . . Retrieved Matter . | . . . Retrieved Components . | . . . Parts Scanalyzed . | . . . Part Schematics Acquired . | . . . Parts Damaged . | . . . Bothacking | -11 -10 -10 ------------ Run | Yrd Mat Min Used RIF Installer . | . . . Robots Hacked . | . . . Non-combat . | . . . Combat . | . . . Robot Hacks Applied . | . . . Relay Couplers Released . | . . . Fabnet Peak Effective % . | . . . Robots Rewired . | . . . Allies Hacked . | . . . Hacks Repelled . | . . . Allies | -11 -10 -10 -------- Run | Yrd Mat Min Total Allies . | . . . Largest Group . | . . . Highest-Rated Group . | . . . Highest-Rated Ally . | . . . Total Orders . | . . . Ally Attacks . | . . . Total Damage . | . . . Kills . | . . . Allies Corrupted . | . . . Allies Melted . | . . . Intel | -11 -10 -10 ------- Run | Yrd Mat Min Robot Analysis Total . | . . . Derelict Logs Recovered 1 | . . 1 Drone Launches . | . . . Drone Recoveries . | . . . Exploration | -11 -10 -10 ------------- Run | Yrd Mat Min Turns Passed 1847 | 59 1444 344 Spaces Moved 849 | 33 662 154 Core 14 | 7 . 7 Treads 777 | 26 662 89 Legs 58 | . . 58 Wheels . | . . . Hover . | . . . Flight . | . . . Fastest Speed 50 | 50 160 160 Average Speed 174 | 145 173 186 Slowest Speed 500 | 160 320 500 Overloaded Moves . | . . . Propulsion Burnouts . | . . . Robots Hopped . | . . . Cave-ins Triggered . | . . . Exploration Rate (%) 45 | 3 98 34 Regions Visited 2 Branch Regions 1 Pre-discovered Areas . | . . . Known Exits Taken . | . . . Unknown Exits Taken 2 | 1 1 . Scrap Searched 1 | . . 1 Spaces Dug . | . . . Terrain Destroyed 27 | . 14 13 Melee . | . . . Projectile . | . . . AOE 27 | . 14 13 Terrain Rammed . | . . . Walls Destroyed . | . . . Machines Disabled . | . . . Actions | -11 -10 -10 --------- Run | Yrd Mat Min Total 1068 | 41 839 188 Wait 80 | . 69 11 Move 847 | 32 661 154 Hop . | . . . Pick Up 14 | 3 9 2 Fast Attach 12 | 6 6 . Attach 2 | . . 2 Detach 5 | . 5 . Swap 11 | . 7 4 Drop 8 | . 7 1 Fire 89 | . 75 14 Melee . | . . . Ram . | . . . Kick . | . . . Crush . | . . . Escape Stasis . | . . . Rewire . | . . . Trap . | . . . Miscellaneous . | . . . Route ------- -11/Scrapyard -10/Materials (discovered 4 exits: [*Mat x3] / [*Min]) -10/Mines History --------- Turn | Location | Event 29 | -11/Scrapyard | Discovered new exit (range 16) 60 | -11/Scrapyard | Entered Materials 300 | -10/Materials | Build established: Mutant 461 | -10/Materials | Discovered new exit (range 9) 588 | -10/Materials | Discovered new exit (range 15) 875 | -10/Materials | Discovered new exit (range 8) 1203 | -10/Materials | Discovered new exit (range 13) 1223 | -10/Materials | Core integrity fell below 50% 1504 | -10/Materials | Entered Mines 1506 | -10/Mines | Core integrity fell below 20% 1838 | -10/Mines | Learned 2 Materials zone layouts 1848 | -10/Mines | Destroyed self with Grenade Launcher Last Messages --------------- 01693_ Acquired 3 matter. 01695_ K-01 Serf collects debris. 01706_ R-06 Scavenger collects Lgt. Ion Engine. 01707_ Acquired Structural Scanner. 01709_ K-01 Serf collects debris. 01724_ Acquired 10 matter. 01725_ Acquired 9 matter. 01725_ Acquired 1 matter. 01727_ K-01 Serf cleans the Seismic Survey Station. 01728_ K-01 Serf collects debris. 01759_ K-01 Serf cleans the Seismic Survey Station. 01761_ K-01 Serf collects debris. 01765_ K-01 Serf cleans the Plasma Injector. 01766_ K-01 Serf collects debris. 01767_ R-06 Scavenger collects Flight Unit. 01769_ K-01 Serf cleans the Plasma Injector. 01838_ Acquired derelict log, extracted data. Data stored: Materials zone layouts (x2). Map ----- +----------------------------------------------------+ | ???######### ## #?????????????????????? | | ???????????# """ ## #?????????????????????? | | ???????????# """ # #########?????????????? | | ???????????# """ # #????????? | | ???????????# # #????????? | | ???????????##### #### ## ########?????????? | | ???????????????# ### #??#????????????????? | | ???????????????# #???????????????????? | | ???????????????#### ##???????????????????? | | ??????????????????# ##????????????????????? | | ??????????????????## #?????????????????????? | | ???????????????????### ##?????????????????????? | | ?????????????????????# ###??????????????????????? | | ?????????????????????# #????????????????????????? | | ?????????????????????# #????????????????????????? | | ?????????????????????# #????????????????????????? | | ?????????????????????# #????????????????????????? | | ?????????????????????# #??????????? ???????????? | | ?????????????????????# #??????? ????????????? | | ?????????????????????# ##### ??????????? | | ?????????????????????# #???????????? | | ?????????????????????# #######?????????????????? | | ?????????????????????### #???????????????????????? | | ???????????# ???????# #???????????????????????? | | ????????????# s s ## ##??????????????????????? | | ?????????????# k @#??????????????????????? | | ?????????????????## #?????????????????????? | | ??????????????????## #?????????????????????? | | ???????????????????## ##?????????????????????? | | ????????????????????# ##??????????????????????? | | ???????????????????# ##???????????????????????? | | ?????????????????? ?????????????????????????? | | ????????????????? ?????????????????????????? | | ???????????????? ?????????????????????????? | | ??????????????? ?????????????????????????? | | ??????????????###### ?????????????????????????? | | ???????????????????## #?????????????????????????? | | ????????????????????###??????????????????????????? | | ?????????????????????????????????????????????????? | | ?????????????????????????????????????????????????? | | ?????????????????????????????????????????????????? | | ?????????????????????????????????????????????????? | | | | | | | | | | | | | | | | | +----------------------------------------------------+ Best States ------------- Heat Dissipation 25 Energy Generation 14 Energy Capacity 250 Matter Stores 300 Matter Capacity 300 Sight Range 18 Robot Scan Range 14 Terrain Scan Density 10 Evasion (%) 40 Recoil Reduction 2 Item Schematics ----------------- None Robot Schematics ------------------ None Fabricated ------------ Nothing Alien Tech Used ----------------- None Achievements -------------- None Challenges ------------ None Game ------ Seed CombatCobblerScreen Manual? 0 Play Time 00:15:11 Cumulative 54.6 hours Start 2024.05.04 @ 16:29:15 End 2024.05.04 @ 16:43:59 Sessions 1 Manual Loads 0 Difficulty Rogue Special Mode None Game No. 85 Rogue 85 Adventurer 0 Explorer 0 Win Type - Total 0 Types 0/0/0/0/0/0/0/0/0 Lore% 27 Gallery% 35 Achievement% 27 Wizard Run 0 Options --------- Layout 1 ASCII 0 Keyboard 1 Movement Numpad Keybinds 0 Fullscreen 1 Font 24/Smallcaps Map View 50x35 Zoom Use 0% Tactical HUD 1 Map Filters NONE Filters NONE Steam 1 RUN: a769a5c5-86d5-4f2e-84a5-beb9305fbe3e